[Event "4NCL Div 1 2024-25"]
[Site "England"]
[Date "2025.01.25"]
[Round "3.22"]
[White "Onslow, Alfie"]
[Black "Villiers, Thomas"]
[Result "1-0"]
[Annotator "TA"]
[ECO "D00"]
[WhiteElo "2170"]
[BlackElo "2182"]
[PlyCount "75"]
[EventDate "2024.11.23"]
[EventType "team-tourn"]
[EventCountry "ENG"]
[SourceTitle "playchess.com"]
[Source "ChessBase"]
[SourceQuality "1"]
[TimeControl "40/6000+30:3000+30"]

{[%evp 9,74,3,58,0,23,14,15,6,6,-8,37,17,75,86,81,0,75,61,115,-111,0,0,0,0,92,-377,-187,-210,-223,-205,-25,-24,0,-5,0,-119,-28,-31,-16,-34,0,-233,-250,-236,532,155,169,67,110,76,274,270,346,345,895,394,911,883,796,762,1652,1714,29995,29996,29996,29997,29999]} 1. d4 {[%emt 0:10:06]} d5 {[%emt 0:10:32]} 2. Bf4 {[%emt 0:00:24]} Nf6 {[%emt 0:01:29]} 3. e3 {[%emt 0:00:20]} c5 {[%emt 0:00:31]} 4. dxc5 {[%emt 0:01:00]} Nc6 {[%emt 0:00:08]} 5. Bb5 {[%emt 0:00:16]} g6 {[%emt 0:13:05]} (5... Bd7 $11) 6. b4 {[%emt 0:10:49] D00: 1 d4 d5: Unusual lines.} (6. Nc3 $14) 6... Bg7 {[%emt 0:00:31]} 7. Be5 {[%emt 0:00:09]} O-O $146 {[%emt 0:00:21]} (7... a5 8. a3 O-O 9. Bxc6 bxc6 10. Nd2 Bh6 11. Ngf3 Ba6 12. Nb3 a4 13. Bxf6 axb3 {0-1 Meessen,R (2170)-Braun,C (2420) BL2-West 2324 2023 (2.8)}) 8. Bxc6 {[%emt 0:02:06] The position is equal.} bxc6 {[%emt 0:00:07]} 9. Nd2 {[%emt 0:01:13]} Ba6 {[%emt 0:01:41]} 10. Ne2 {[%emt 0:00:59]} Bh6 {[%emt 0:06:38]} (10... Qd7 $11 {remains equal.}) 11. Bxf6 $16 {[%emt 0:10:47]} exf6 {[%emt 0:00:05]} 12. Nd4 {[%emt 0:00:20]} ({White should play} 12. Nb3 $16) 12... Qd7 {[%emt 0:03:31]} (12... f5 $11) 13. N2b3 {[%emt 0:01:47]} Rfe8 {[%emt 0:01:41]} (13... f5 $14) 14. Na5 $2 {[%emt 0:07:52]} (14. h4 $16 {and life is bright.}) 14... f5 {[%emt 0:04:39]} (14... Rxe3+ $1 $17 15. fxe3 Re8) 15. g3 $11 {[%emt 0:00:54][%cal Od1d2]} (15. Naxc6 f4 16. a4 (16. b5 $2 Bxb5 17. Nxb5 Qxc6 $19) 16... fxe3 $19) 15... Re4 $1 {[%emt 0:07:53]} 16. c3 {[%emt 0:34:53][%cal Od1b3]} (16. Ndxc6 Bg7 17. Kd2 Bb7 $19) 16... Rae8 {[%emt 0:06:13]} (16... Bxe3 $1 $11 17. fxe3 Rxe3+ 18. Kf2 f4) 17. Qa4 $2 {[%emt 0:15:01][%mdl 8192]} (17. Naxc6 Rxe3+ 18. fxe3 Bxe3 $19) (17. Kd2 $1 $16 {is forced if you want to stay better.}) 17... Bb5 {[%emt 0:09:47]} (17... Rxd4 $142 18. cxd4 Bxe3 19. fxe3 Rxe3+ 20. Kd1 (20. Kd2 $2 Re2+ 21. Kd1 Qe7 $19) 20... Qe6) 18. Nxb5 $19 {[%emt 0:02:36]} cxb5 {[%emt 0:00:14]} 19. Qc2 {[%emt 0:01:27] [#]} Bxe3 {[%emt 0:01:38][%mdl 512]} 20. O-O $1 $11 {[%emt 0:03:29]} (20. fxe3 $2 Rxe3+ 21. Kf2 Qe6 $19) 20... Bg5 {[%emt 0:00:15]} 21. Qd3 $36 {[%emt 0:01:16][%mdl 2048] White has the initiative.} f4 {[%emt 0:00:49]} 22. Kg2 {[%emt 0:00:20]} (22. Rad1 $1 $11) 22... Bd8 {[%emt 0:02:52]} (22... R8e5 $1 $17 {Hoping for ...Bd8.} 23. c6 Qe6) 23. Nb3 $1 {[%emt 0:00:51]} R8e5 {[%emt 0:00:29][%cal Be8e5,Be5h5,Bh5h2][%mdl 32]} 24. Nd2 {[%emt 0:01:48]} Rh5 {[%emt 0:00:29]} 25. Nxe4 $2 {[%emt 0:01:15]} (25. h4 $1 $11 Rxh4 26. Rh1 (26. gxh4 Qg4+ 27. Kh2 f3 $19) 26... Rxh1 27. Rxh1) 25... Qh3+ $19 {[%emt 0:00:49]} 26. Kf3 {[%emt 0:00:02]} Qf5 $4 {[%emt 0:00:41][%mdl 8192] [#]} (26... dxe4+ $19 27. Qxe4 Bf6) 27. Nf6+ $2 {[%emt 0:01:24]} Qxf6 $16 {[%emt 0:00:18] [#]} 28. Ke2 {[%emt 0:00:26]} (28. gxf4 $2 Rh3+ (28... Rxh2 $2 29. Rh1 $18) 29. Ke2 Rxd3 30. Kxd3 Qf5+ (30... Qxf4 $2 31. Rae1 $19) 31. Kd2 Qxf4+ 32. Kc2 Qe4+ (32... Qxh2 $2 33. Rfd1 $19) 33. Kd2 Bg5+ 34. f4 Bxf4+ 35. Rxf4 Qxf4+ $19) (28. Kg2 $1 $18) 28... Rxh2 {[%emt 0:00:26]} 29. Rae1 {[%emt 0:00:31][%cal Ba1e1,Be1e8,Be8e7,Be7c7][%mdl 32] Threatens to win with Kd1.} (29. Qxd5 fxg3 30. Qd4 Qg5 $17) 29... Bc7 $2 {[%emt 0:01:47]} (29... fxg3 $16 30. Qxg3 (30. Qxb5 $2 {loses.} gxf2 31. Rc1 Qe5+ 32. Kd1 Bg5 $19) 30... Rh4) 30. g4 $18 {[%emt 0:00:21]} (30. Qxb5 fxg3 (30... Qxc3 $2 31. Qd3 $19) 31. Qe8+ Kg7 $19) 30... Qe6+ {[%emt 0:01:52]} 31. Kd2 {[%emt 0:00:12]} Qxg4 {[%emt 0:00:39]} (31... Qc6 32. Qd4 a5) 32. Re8+ {[%emt 0:01:00]} Kg7 {[%emt 0:00:02][%cal Bg8g7,Bg7h6,Bh6h5][%mdl 32]} 33. Qd4+ {[%emt 0:00:20]} ({Not} 33. Qxb5 Qf3 $18) 33... Kh6 {[%emt 0:00:09]} 34. Re7 {[%emt 0:00:11]} Qg2 {[%emt 0:01:04]} 35. Rxc7 {[%emt 0:00:21]} Qg1 {[%emt 0:00:44]} 36. Rxg1 {[%emt 0:00:13] White mates.} Kh5 {[%emt 0:00:11]} 37. Qxf4 {[%emt 0:00:11][%cal Rf4h2]} h6 {[%emt 0:00:05]} 38. Qg4# {[%emt 0:00:37] Weighted Error Value: White=0.65/Black=1.25  Loses game:     	White=2     	Black=1      Missed win:     	White=1     	Black=2      Mistake:       	White=4     	Black=8      Inaccurate:     	White=1     	Black=3      OK:         	White=9     	Black=5      Best:        	White=3     	Black=2      Strong:       	White=2     	Black=1} 1-0

[Event "4NCL Div 1 2024-25"]
[Site "England"]
[Date "2025.01.25"]
[Round "3.23"]
[White "Mirzoeva, Elmira"]
[Black "Hryshchenko, Kamila"]
[Result "1-0"]
[Annotator "TA"]
[ECO "A49"]
[WhiteElo "2258"]
[BlackElo "2138"]
[PlyCount "65"]
[EventDate "2024.11.23"]
[EventType "team-tourn"]
[EventCountry "ENG"]
[SourceTitle "playchess.com"]
[Source "ChessBase"]
[SourceQuality "1"]
[TimeControl "40/6000+30:3000+30"]

{[%evp 12,65,34,19,36,33,39,25,35,39,39,33,70,74,82,58,71,46,119,98,108,104,118,100,131,129,164,142,129,103,108,102,102,64,63,61,112,116,114,116,114,49,131,98,138,147,275,261,392,379,384,382,979,949,1859,1792]} 1. d4 {[%emt 0:10:03]} g6 {[%emt 0:10:25]} 2. Nf3 {[%emt 0:00:44]} Bg7 {[%emt 0:00:10]} 3. b3 {[%emt 0:00:14]} d6 {[%emt 0:00:48]} 4. Bb2 {[%emt 0:00:28]} Nf6 {[%emt 0:00:43]} 5. g3 {[%emt 0:00:23]} O-O {[%emt 0:00:19]} 6. Bg2 {[%emt 0:00:28]} Nc6 {[%emt 0:04:50]} 7. O-O {[%emt 0:01:20]} a6 {[%emt 0:01:53] A49: 1 d4 Nf6 2 Nf3 g6 3 g3: Anti-King's Indian systems.} 8. d5 {[%emt 0:01:44]} Na5 {[%emt 0:02:31]} (8... Nb8 9. c4 e5 10. dxe6 fxe6 11. Nc3 Nc6 12. Qd2 Bd7 13. Rad1 Rb8 14. Ng5 Qe8 15. Nce4 {1-0 Mirzoeva,E (2282)-Hryshchenko,K (2181) London Menchik Memorial (Women) 2024 (8)}) 9. Re1 $146 {[%emt 0:19:39]} (9. c4 b5 10. Nbd2 Rb8 11. Bc3 c5 12. Qc2 e6 13. e4 bxc4 14. bxc4 exd5 15. cxd5 Re8 16. h3 c4 17. Rab1 Bd7 18. Rxb8 Qxb8 19. Bxa5 {1-0 Sielecki,C (2403)-Roebers,J (2058) Titled Tuesday intern op 09th Apr Early blitz 2024 (1)}) 9... c5 {[%emt 0:02:55] White has an edge.} 10. e4 {[%emt 0:01:09][%cal Be2e4,Be4e5][%mdl 32]} e5 {[%emt 0:03:47]} 11. dxe6 {[%emt 0:07:01]} fxe6 {[%emt 0:09:25]} 12. e5 {[%emt 0:17:25]} Ng4 {[%emt 0:02:49][%cal Bf6g4,Bg4h6,Bh6f7][%mdl 32]} 13. h3 {[%emt 0:01:54]} (13. Qxd6 $2 Qxd6 14. exd6 Bxb2 $19) 13... Nh6 {[%emt 0:00:37] A sharp opening} 14. c4 {[%emt 0:12:19][%cal Ob2c3]} (14. Qxd6 $2 Qxd6 15. exd6 Bxb2 $19) 14... Rb8 {[%emt 0:03:42]} (14... Nc6 $14) 15. Nc3 {[%emt 0:01:17]} (15. Qxd6 $2 Qxd6 16. exd6 Bxb2 $19) 15... Nf7 {[%emt 0:04:10][%cal Rd6e5]} 16. Ne4 {[%emt 0:05:52]} Nc6 {[%emt 0:00:44]} 17. Rb1 {[%emt 0:06:58][%cal Re4d6]} (17. Nxd6 Nxd6 18. Qc2 Nf5 $19) 17... Nfxe5 {[%emt 0:21:26]} 18. Nxe5 {[%emt 0:20:32]} (18. Nxd6 Nxf3+ (18... Rxf3 $2 19. Bxf3 Nxf3+ 20. Qxf3 $19) 19. Bxf3 Bxb2 (19... Rxf3 $2 20. Bxg7 Kxg7 21. Ne8+ Qxe8 22. Qxf3 $19) 20. Nxc8 (20. Rxb2 $2 Nd4 $19) 20... Qxd1 (20... Bd4 $2 21. Rf1 $19) 21. Rexd1 Rxf3 $19 (21... Rbxc8 22. Bxc6 Bd4 23. Bd7 $11)) 18... Nxe5 {[%emt 0:00:43]} 19. Nxd6 {[%emt 0:00:00]} Nf7 {[%emt 0:04:21]} 20. Ne4 {[%emt 0:00:00] White is much more active.} Bd4 {[%emt 0:01:12]} 21. Qe2 {[%emt 0:00:00][%cal Ob3b4]} b6 {[%emt 0:10:07]} 22. Rbd1 {[%emt 0:00:00]} e5 {[%emt 0:00:38]} 23. Bxd4 {[%emt 0:00:00]} cxd4 {[%emt 0:01:33]} ({Black should play} 23... exd4 $14 24. b4 Qc7) 24. Nc3 $16 {[%emt 0:00:00]} Bb7 {[%emt 0:01:33]} 25. Nd5 {[%emt 0:00:00]} Qd6 {[%emt 0:01:08]} 26. h4 {[%emt 0:00:00]} (26. f4 $16 {[%cal Rf4e5]} Rbe8 27. Qd2) 26... Kg7 {[%emt 0:01:19]} (26... Rbe8 $14) 27. Qd3 {[%emt 0:00:00]} Bc8 {[%emt 0:01:54]} 28. f4 {[%emt 0:00:00] [#]} Bf5 {[%emt 0:09:42]} (28... Bg4 $16) 29. fxe5 $18 {[%emt 0:02:06]} Nxe5 {[%emt 0:00:22]} (29... Qc5 {was called for.}) 30. Qxd4 {[%emt 0:00:11]} Rbe8 {[%emt 0:00:15]} 31. Re3 {[%emt 0:02:38][%cal Od1e1] Strongly threatening Rde1!.} ({Worse is} 31. Nxb6 Qxd4+ 32. Rxd4 Nf3+ 33. Bxf3 Rxe1+ 34. Kf2 Ra1 $17) (31. Qxb6 $2 {loses.} Nf3+ 32. Bxf3 Qxg3+ 33. Bg2 Rxe1+ 34. Rxe1 Qxe1+ 35. Kh2 Qxh4+ 36. Kg1 Qe1+ 37. Kh2 Qh4+ 38. Kg1 Re8 39. Qa7+ Kg8 $19) 31... Re6 $2 {[%emt 0:03:24] [#]} (31... Bg4 32. Rde1 (32. Nxb6 Qxd4 33. Rxd4 Bf5 $18) (32. Rxe5 Qxe5 33. Qxg4 Rd8 $18) 32... Rf5) 32. Nf4 {[%emt 0:00:56][%csl LRd6,LRe6]} Rd8 {[%emt 0:03:58]} 33. Nxe6+ {[%emt 0:00:13] Weighted Error Value: White=0.12 (very precise) /Black=0.67  Mistake:       	White=1     	Black=6      Inaccurate:     	White=1     	Black=4      OK:         	White=10    	Black=7      Best:        	White=3     	Black=1} 1-0

[Event "4NCL Div 1 2024-25"]
[Site "England"]
[Date "2025.01.25"]
[Round "3.24"]
[White "Varnam, Liam D"]
[Black "Pollack, Oscar"]
[Result "0-1"]
[Annotator "TA"]
[ECO "B36"]
[WhiteElo "2033"]
[BlackElo "2030"]
[PlyCount "104"]
[EventDate "2024.11.23"]
[EventType "team-tourn"]
[EventCountry "ENG"]
[SourceTitle "playchess.com"]
[Source "ChessBase"]
[SourceQuality "1"]
[TimeControl "40/6000+30:3000+30"]

{[%evp 17,104,37,30,36,45,57,56,8,22,0,0,0,0,-34,-29,-27,-17,-20,-15,-22,-18,-21,-7,-43,-19,-35,-25,-34,-19,-60,-47,-50,-42,-47,-41,-50,-35,-85,-83,-92,-72,-122,-113,-123,-86,-126,-121,-279,-271,-400,-377,-394,-386,-406,-399,-400,-394,-389,-391,-390,-388,-381,-372,-377,-372,-409,-404,-446,-437,-440,-427,-471,-478,-498,-440,-508,-502,-503,-481,-769,-754,-782,-812,-1377,-1338,-1278,-1253,-5539,-2666]} 1. e4 {[%emt 0:10:07]} c5 {[%emt 0:10:37]} 2. Nf3 {[%emt 0:00:08]} g6 {[%emt 0:00:08]} 3. d4 {[%emt 0:00:22]} cxd4 {[%emt 0:00:03]} 4. Nxd4 {[%emt 0:00:34]} Nc6 {[%emt 0:00:59]} 5. c4 {[%emt 0:01:41]} Nf6 {[%emt 0:00:09]} 6. Nc3 {[%emt 0:00:45]} d6 {[%emt 0:01:30]} 7. Be2 {[%emt 0:00:58]} Nxd4 {[%emt 0:02:53]} 8. Qxd4 {[%emt 0:00:08]} Bg7 {[%emt 0:00:04]} 9. O-O {[%emt 0:01:16]} O-O {[%emt 0:00:23]} 10. Qd3 {[%emt 0:01:22]} a5 {[%emt 0:04:26]} 11. Be3 {[%emt 0:03:43]} a4 {[%emt 0:01:20]} 12. f3 {[%emt 0:24:14]} (12. Bd4 $14) 12... Be6 $11 {[%emt 0:07:29]} 13. Qd2 {[%emt 0:16:07]} Qa5 {[%emt 0:03:20]} 14. Rac1 {[%emt 0:11:26]} Rfc8 {[%emt 0:10:45]} 15. Nb5 {[%emt 0:08:21]} Qxd2 {[%emt 0:04:47]} 16. Bxd2 {[%emt 0:00:05]} Nd7 {[%emt 0:00:14]} 17. Rc2 $1 {[%emt 0:03:25]} f5 {[%emt 0:14:07]} 18. Be3 {[%emt 0:03:15]} fxe4 {[%emt 0:02:43]} 19. fxe4 {[%emt 0:00:21]} Nc5 {[%emt 0:02:51]} 20. Nd4 {[%emt 0:10:13]} Bf7 {[%emt 0:01:53][%cal Oa8a5]} 21. Bg4 {[%emt 0:04:37]} Rc7 {[%emt 0:00:39]} 22. Nb5 {[%emt 0:02:57]} Rc6 {[%emt 0:00:07]} 23. e5 {[%emt 0:03:38]} Bxe5 {[%emt 0:01:02]} 24. Bf3 {[%emt 0:00:42]} Rcc8 {[%emt 0:01:01]} 25. b4 {[%emt 0:00:41]} axb3 {[%emt 0:01:41]} 26. axb3 {[%emt 0:00:04]} Rab8 {[%emt 0:01:37]} (26... Nxb3 27. Bxb7 Bf6 28. Bxc8 (28. Nxd6 exd6 29. Bxc8 Bd4 $16) 28... Rxc8 29. Nxd6 $18) 27. Bg4 {[%emt 0:01:29]} (27. Re1 $15) 27... Nxb3 $17 {[%emt 0:03:04]} 28. Bxc8 {[%emt 0:00:48]} Rxc8 {[%emt 0:00:03]} 29. Rb1 {[%emt 0:00:23]} ({Better is} 29. h3) 29... Rxc4 {[%emt 0:00:59] Black is more active.} (29... Bxc4 $2 30. Na3 $18 (30. Rxb3 Rc6 $14)) 30. Ra2 {[%emt 0:00:39]} Rc8 {[%emt 0:01:34][%cal Ob3d4] Against Ra8} 31. Ra7 {[%emt 0:00:30]} Bd5 {[%emt 0:00:31]} 32. Bb6 $2 {[%emt 0:00:53] White does not recover from this.} (32. Ra3 $17) 32... Rc2 $19 {[%emt 0:01:13]} 33. Ra8+ {[%emt 0:00:24]} (33. Bf2 $142) 33... Kg7 {[%emt 0:00:05]} 34. Bf2 {[%emt 0:00:40]} Nc1 {[%emt 0:04:00]} 35. Nd4 {[%emt 0:00:25] [#]} Rxf2 {[%emt 0:00:35][%mdl 512]} 36. Ne6+ {[%emt 0:00:27]} Bxe6 {[%emt 0:00:24]} 37. Kxf2 {[%emt 0:00:06]} Nd3+ {[%emt 0:00:03]} (37... Nb3 38. Ra3 Nc5 (38... Bxh2 39. Rbxb3 Bxb3 40. Rxb3 $17) 39. Rb4 $19) 38. Ke3 {[%emt 0:00:51]} Bf4+ {[%emt 0:00:58]} 39. Ke2 {[%emt 0:00:39]} Bg4+ {[%emt 0:01:00]} (39... Bxh2 40. Rh1 $11) 40. Kf1 {[%emt 0:00:19]} Nc5 {[%emt 0:00:08]} ({Don't take} 40... Bxh2 41. Rxb7 Kf6 42. Rf8+ Kg5 43. Rxe7) 41. Rb4 {[%emt 0:25:53]} e5 {[%emt 0:21:31]} 42. g3 {[%emt 0:02:12]} Bh3+ {[%emt 0:00:04] Black is clearly winning.} 43. Ke2 {[%emt 0:00:10]} Bg5 {[%emt 0:00:21]} 44. Rb6 {[%emt 0:06:38]} Be7 {[%emt 0:00:32]} 45. Re8 {[%emt 0:01:25]} Kf7 {[%emt 0:00:14]} 46. Rh8 {[%emt 0:00:43]} h5 {[%emt 0:00:20]} 47. Ke3 {[%emt 0:01:21]} Bf5 {[%emt 0:01:16]} 48. h4 {[%emt 0:01:29]} (48. Kf2 $142) 48... d5 {[%emt 0:02:23] [#] Threatens to win with ...d4+.} 49. Rb5 {[%emt 0:02:36]} d4+ {[%emt 0:01:16]} 50. Kd2 {[%emt 0:01:24]} Ne4+ {[%emt 0:02:47]} 51. Ke1 {[%emt 0:02:44]} d3 {[%emt 0:00:28] ( -> ...d2+)} 52. Rh7+ {[%emt 0:03:57]} Ke6 {[%emt 0:00:14] Weighted Error Value: White=0.47/Black=0.04 (flawless)   Mistake:       	White=6     	---        Inaccurate:     	White=4     	Black=1      OK:         	White=13    	Black=24     Best:        	White=2     	Black=3      Strong:       	White=1     	---} (52... Kg8 $142 53. Rxe7 d2+ (53... Nxg3 $2 {perishes.} 54. Rbxb7 Kf8 55. Rh7 $18) 54. Ke2 Bg4+ (54... Nxg3+ $2 55. Kxd2 Ne4+ 56. Kc1 $18) 55. Ke3 d1=Q (55... d1=B $2 56. Kxe4 Kf8 57. Rc7 $18) 56. Rbxe5 Nxg3) 0-1

[Event "4NCL Div 1 2024-25"]
[Site "England"]
[Date "2025.01.25"]
[Round "3.25"]
[White "Bazakutsa, Svyatoslav"]
[Black "Larkin, Vladyslav"]
[Result "1-0"]
[Annotator "TA"]
[ECO "A25"]
[WhiteElo "2486"]
[BlackElo "2455"]
[PlyCount "97"]
[EventDate "2024.11.23"]
[EventType "team-tourn"]
[EventCountry "ENG"]
[SourceTitle "playchess.com"]
[Source "ChessBase"]
[SourceQuality "1"]
[TimeControl "40/6000+30:3000+30"]

{[%evp 9,97,23,31,24,29,26,45,19,51,40,43,50,54,54,100,100,100,95,186,201,179,186,186,176,160,153,213,222,220,210,220,180,180,182,180,182,182,167,187,175,178,171,171,172,187,189,208,209,308,327,326,308,335,339,339,351,329,350,351,345,349,348,350,346,422,375,411,411,598,589,714,701,698,688,838,837,772,641,727,724,3087,2844,1431,29967,29977,29978,29952,10900,5727,317]} 1. c4 {[%emt 0:10:13]} e5 {[%emt 0:10:15]} 2. g3 {[%emt 0:00:09]} Nc6 {[%emt 0:00:49]} 3. Bg2 {[%emt 0:00:15]} Bc5 {[%emt 0:00:06]} 4. Nc3 {[%emt 0:00:12]} d6 {[%emt 0:00:06]} 5. e3 {[%emt 0:00:21]} a6 {[%emt 0:00:05]} 6. Nf3 {[%emt 0:00:13] A25: English Opening vs King's Indian with ...Nc6 but without early d3.} Nf6 {[%emt 0:00:12]} 7. d4 {[%emt 0:02:19]} Bb4 {[%emt 0:02:58]} 8. Qb3 $146 {[%emt 0:26:07] White is slightly better.} (8. Qc2 O-O 9. O-O Bxc3 10. Qxc3 e4 11. Nd2 Bf5 12. f3 exf3 13. Bxf3 Bh3 14. Re1 {½-½ Rasmussen,A (2542)-Nikolaidis,I (2519) EU-chT (Men) 21st 2017 (8.1)}) 8... exd4 {[%emt 0:25:03]} 9. exd4 {[%emt 0:03:00]} O-O {[%emt 0:14:54]} 10. O-O {[%emt 0:01:37]} Bxc3 {[%emt 0:00:17]} 11. Qxc3 {[%emt 0:10:10]} Ne4 {[%emt 0:00:27] Black is on the road to losing.} (11... d5 $14) 12. Qd3 $16 {[%emt 0:11:15]} Re8 {[%emt 0:02:38]} 13. Re1 {[%emt 0:03:44]} Bf5 {[%emt 0:34:36]} (13... Nb4 $16 14. Qb3 Nc6) 14. Nh4 $18 {[%emt 0:04:51]} Nxg3 {[%emt 0:00:05]} 15. Rxe8+ {[%emt 0:02:37]} Qxe8 {[%emt 0:00:05]} 16. Nxf5 {[%emt 0:10:13]} Qe1+ {[%emt 0:03:00]} 17. Bf1 {[%emt 0:00:11]} Nxf5 {[%emt 0:00:05]} (17... Nxf1 $16 18. Qxf1 Qe4) 18. Qxf5 {[%emt 0:00:06]} Nxd4 {[%emt 0:08:30]} 19. Qg4 {[%emt 0:02:22]} Re8 {[%emt 0:04:06]} 20. Qxd4 {[%emt 0:01:28]} Re6 {[%emt 0:00:11] [#] and ...Rg6+ should not be overlooked Prevents Bh6} 21. b3 $1 {[%emt 0:09:53]} ({Much less strong is} 21. Qg4 $6 h5 22. Qh3 (22. Qxh5 Rg6+ 23. Bg5 Qxa1 $11) 22... Rg6+ 23. Kh1 Qxf2 $14) 21... Rg6+ {[%emt 0:01:59] [#]} 22. Bg5 $1 {[%emt 0:00:10]} Rxg5+ {[%emt 0:00:22]} 23. Kh1 {[%emt 0:00:01]} Qe7 {[%emt 0:00:37]} 24. Bg2 {[%emt 0:00:50]} Re5 {[%emt 0:00:16]} 25. h3 {[%emt 0:01:23]} (25. Bxb7 $2 {perishes.} c5 26. Qg4 Qxb7+ 27. Qg2 Qc8 $19) 25... b6 {[%emt 0:00:16]} 26. Rg1 {[%emt 0:01:50][%cal Ba1g1,Bg1g3,Bg3f3][%mdl 32]} g6 {[%emt 0:00:51]} 27. Bd5 {[%emt 0:02:14]} Re2 {[%emt 0:00:27]} 28. Rg3 {[%emt 0:01:20]} Re1+ {[%emt 0:00:35]} (28... c5 $142 29. Qf4 Re5) 29. Kh2 {[%emt 0:00:41]} c5 {[%emt 0:00:29]} 30. Qc3 {[%emt 0:00:35]} Qe5 {[%emt 0:00:37]} 31. Qxe5 {[%emt 0:01:30]} Rxe5 {[%emt 0:00:04][%mdl 4096] Endgame KRB-KR} 32. Rf3 {[%emt 0:00:02]} Re7 {[%emt 0:00:05][%cal Be5e7,Be7d7,Bd7d8,Bd8c8][%mdl 32]} 33. Rf6 {[%emt 0:00:04]} Rd7 {[%emt 0:00:03]} 34. Bc6 {[%emt 0:00:06]} Rd8 {[%emt 0:00:51]} 35. Kg3 {[%emt 0:00:15]} Kf8 {[%emt 0:00:21]} 36. h4 {[%emt 0:00:58][%cal Bh3h4,Bh4h5][%mdl 32]} h6 {[%emt 0:01:27] [#]} 37. h5 $1 {[%emt 0:01:29]} Kg7 {[%emt 0:00:18]} (37... Ke7 38. Rf3) 38. Rf3 {[%emt 0:00:02]} g5 {[%emt 0:00:49]} (38... a5 $142 39. Kg4 Rf8) 39. Kg4 {[%emt 0:00:12]} Rc8 {[%emt 0:00:17]} 40. Bd5 {[%emt 0:00:17]} Rf8 {[%emt 0:00:20]} 41. Kf5 {[%emt 0:51:13] And now Re3 would win.} Rd8 {[%emt 0:22:31]} 42. Re3 {[%emt 0:00:00]} Rd7 {[%emt 0:00:01]} 43. Re4 {[%emt 0:00:00]} b5 {[%emt 0:00:52]} 44. f4 {[%emt 0:00:00]} gxf4 {[%emt 0:03:50]} 45. Rxf4 {[%emt 0:00:00]} Re7 {[%emt 0:01:42]} 46. Re4 {[%emt 0:00:00]} Ra7 {[%emt 0:00:16]} 47. Rg4+ {[%emt 0:00:00]} Kf8 {[%emt 0:00:59]} 48. Kf6 {[%emt 0:00:00] White threatens Rg3 and mate.} Re7 {[%emt 0:00:04] [#]} 49. Rg8+ $3 {[%emt 0:00:00][%mdl 512] Weighted Error Value: White=0.06 (flawless) /Black=0.39  Mistake:       	---       	Black=5      Inaccurate:     	White=1     	Black=1      OK:         	White=20    	Black=12     Best:        	White=4     	Black=2      Strong:       	White=1     	---        Brilliant:      	White=1     	---} 1-0